bitfinex/quotes_ETHUSD_20251124
["timestamp","ask_amount","ask_price","bid_price","bid_amount"]
[1763944002536,0.002,2789.9,2789.8,0.1]
[1763944003439,0.4684,2789.9,2789.8,0.1]
[1763944003643,0.4684,2789.9,2789.7,0.1]
[1763944003865,0.4708,2789.8,2789.2,0.1]
[1763944003998,0.4708,2789.8,2788.6,0.4846]
[1763944004202,0.4708,2789.8,2789.2,0.1]
[1763944004704,0.4664,2789.3,2789.0,0.1]
[1763944005104,0.4664,2789.3,2789.1,0.1]
[1763944006012,0.4708,2789.5,2789.1,0.1]
[1763944007660,0.002,2789.9,2789.1,0.169]
[1763944007948,0.002,2789.9,2789.7,0.1]
[1763944008144,0.002,2789.9,2789.6,0.1]
[1763944008557,0.4664,2789.7,2788.9,0.1]
[1763944008707,0.4664,2789.7,2788.2,0.4846]
[1763944008708,0.0714,2789.2,2788.8,0.1]
[1763944009052,0.0714,2789.2,2788.6,0.1]
[1763944009208,0.5422,2789.2,2788.6,0.1]
[1763944009404,0.5422,2789.2,2788.1,1.08589264]
[1763944009405,0.0714,2789.2,2788.1,4.6725121]
[1763944009634,0.7038,2789.6,2788.5,0.90699264]
[1763944009830,0.4708,2789.6,2789.2,0.1]
[1763944010132,0.4728,2789.9,2789.3,0.1]
[1763944010333,0.4728,2789.9,2789.5,0.1]
[1763944010757,0.002,2789.9,2789.2,0.169]
[1763944010973,0.002,2789.9,2789.2,9.48378449]
[1763944011269,0.002,2789.9,2789.8,0.4764]
[1763944011470,0.002,2789.9,2789.8,0.5764]
[1763944011834,0.002,2789.9,2789.8,0.1]
[1763944012054,0.002,2789.9,2789.6,0.1]
[1763944012055,0.9392,2789.9,2789.6,0.1]
[1763944012670,0.04680447,2789.9,2787.7,0.1864]
[1763944012874,0.4664,2789.3,2788.7,0.1]
[1763944013045,0.4664,2789.3,2789.0,0.1]
[1763944013640,0.002,2789.9,2789.2,0.4764]
[1763944013975,0.002,2789.9,2789.4,0.1]
[1763944014165,0.002,2789.9,2789.1,1.07599264]
[1763944014166,0.002,2789.9,2789.6,0.1]
[1763944014361,0.002,2789.9,2789.3,0.1]
[1763944014362,0.4728,2789.9,2789.3,0.1]
[1763944014675,0.4728,2789.9,2788.5,0.4846]
[1763944014676,0.4664,2789.4,2788.5,0.4846]
[1763944014839,0.002,2789.9,2788.6,1.39159264]
[1763944015039,0.002,2789.9,2789.4,0.1]
[1763944015374,0.002,2789.9,2789.8,0.1]
[1763944015872,0.002,2789.9,2789.8,0.5764]
[1763944016075,0.002,2789.9,2789.8,1.96799264]
[1763944016278,0.002,2789.9,2789.8,5.55247898]
[1763944016489,0.002,2790.0,2789.9,0.405504]
[1763944016703,0.8856,2792.0,2791.1,0.1]
[1763944016970,1.61404346,2791.9,2791.0,0.1]
[1763944017189,1.09847109,2791.8,2790.8,0.1]
[1763944017361,0.4708,2791.8,2790.8,0.1]
[1763944017563,0.1818,2792.0,2791.0,0.1]
[1763944017886,0.4708,2791.7,2791.2,0.1]
[1763944018196,0.04477718,2791.6,2790.8,0.1]
[1763944018491,0.4708,2791.7,2790.8,0.1]
[1763944018666,0.1889,2790.9,2790.6,0.1]
[1763944018854,0.4708,2791.6,2790.8,0.1]
[1763944019054,1.64076375,2791.8,2790.8,0.1]
[1763944019252,0.4148,2792.0,2790.2,0.90699264]
[1763944019253,0.4708,2791.9,2790.6,1.39159264]
[1763944019454,0.4708,2791.9,2791.2,0.1]
[1763944019653,0.4708,2791.9,2790.1,3.58410092]
[1763944019654,0.4708,2791.9,2791.0,0.1]
[1763944019884,0.405504,2791.7,2790.6,0.1]
[1763944020062,0.233,2791.6,2790.3,0.4846]
[1763944020262,0.1818,2792.0,2791.0,0.1]
[1763944020263,0.4708,2791.8,2791.0,0.1]
[1763944020467,0.7038,2791.8,2791.3,0.1]
[1763944020855,0.4664,2791.4,2790.8,0.1]
[1763944021352,0.4664,2791.4,2790.5,0.90699264]
[1763944021558,0.7038,2791.6,2791.1,0.1]
[1763944021899,0.7038,2791.6,2790.2,3.58394684]
[1763944021900,0.6553,2790.6,2789.5,0.4846]
[1763944022116,0.6553,2790.6,2790.1,0.1]
[1763944022117,0.1889,2790.6,2790.1,0.1]
[1763944022318,0.1889,2791.0,2790.5,0.1]
[1763944022519,0.1889,2791.0,2790.8,0.1]
[1763944022691,0.405504,2791.8,2790.2,0.1]
[1763944022692,0.4708,2791.4,2790.2,0.1]
[1763944022892,0.4708,2791.4,2790.1,1.39159264]
[1763944023094,0.1818,2792.0,2790.5,0.90699264]
[1763944023395,0.1818,2792.0,2791.4,0.1]
[1763944023702,0.4708,2791.9,2791.3,0.1]
[1763944024578,0.4708,2791.9,2790.6,0.4846]
[1763944024984,0.4708,2791.9,2791.6,0.1]
[1763944025180,0.4708,2791.9,2790.6,0.4846]
[1763944025181,0.4708,2791.9,2791.1,0.1]
[1763944025590,0.4708,2791.9,2791.1,0.1969]
[1763944025785,0.1818,2792.0,2791.1,0.6815]
[1763944026021,0.4708,2792.4,2792.1,0.1]
[1763944026230,0.4708,2792.4,2791.2,12.41287293]
[1763944026231,0.1889,2792.7,2791.7,8.83018449]
[1763944026394,0.1889,2792.7,2792.4,0.1]
[1763944027213,0.4917,2792.5,2792.0,0.1]
[1763944027610,0.4888,2792.4,2792.0,0.1]
[1763944028421,0.4917,2792.1,2791.1,0.1969]
[1763944028718,0.4917,2792.1,2791.7,0.1]
[1763944028920,0.4888,2792.5,2791.7,0.1]
[1763944029131,0.4888,2792.4,2791.8,0.1]
[1763944029684,0.4888,2792.4,2791.3,0.90699264]
[1763944029685,0.4888,2792.4,2791.9,0.1]
[1763944029886,0.4888,2792.4,2792.1,0.1]
[1763944030083,0.1889,2792.7,2791.8,8.83018449]
[1763944030283,0.1889,2792.7,2791.3,4.48953498]
[1763944030284,0.4888,2792.6,2791.5,0.90699264]
[1763944030509,0.4888,2792.6,2792.1,0.1]
[1763944030712,0.1889,2792.7,2792.4,0.1]
[1763944030924,0.4888,2792.6,2792.0,0.1]
[1763944031125,0.04476275,2792.5,2791.8,0.1]
[1763944031339,0.1889,2792.7,2792.1,0.1]
[1763944031633,0.4917,2792.2,2790.7,0.7094162]
[1763944031832,0.53356115,2792.6,2790.7,0.7094162]
[1763944031833,0.53356115,2792.6,2791.4,0.1]
[1763944032012,0.6786,2791.5,2791.4,0.1]
[1763944032228,0.6786,2791.5,2791.2,0.1]
[1763944032724,1.1674,2791.5,2791.2,0.1]
[1763944033325,0.1869,2792.0,2791.1,0.0787]
[1763944033500,0.1869,2792.0,2791.4,0.1]
[1763944033700,0.4888,2791.9,2791.4,0.1]
[1763944034936,0.4917,2791.5,2791.4,0.1]
[1763944035141,0.4917,2791.5,2791.2,0.1]
[1763944035313,0.4917,2791.5,2790.6,8.81459669]
[1763944035314,0.4917,2791.5,2790.6,0.4508]
[1763944035513,0.4888,2791.9,2791.3,0.1]
[1763944036042,0.4888,2791.9,2791.4,0.1]
[1763944036458,0.4888,2791.9,2791.0,0.1]
[1763944036459,0.4917,2791.5,2791.0,0.1]
[1763944036738,0.405504,2791.8,2790.7,0.1]
[1763944036950,0.405504,2791.6,2790.7,0.1]
[1763944037236,0.4888,2791.7,2790.5,0.4508]
[1763944037440,0.4888,2791.6,2790.9,0.1]
[1763944037618,0.4888,2791.6,2791.2,0.1]
[1763944037820,0.4888,2791.6,2790.9,0.1]
[1763944038637,0.4917,2791.0,2790.0,1.35779264]
[1763944038944,0.4888,2791.6,2790.6,0.1]
[1763944039128,0.4888,2791.6,2790.8,0.1]
[1763944040444,0.4888,2791.6,2791.0,0.1]
[1763944041342,0.4888,2791.9,2791.3,0.1]
[1763944041547,0.4888,2791.9,2791.5,0.1]
[1763944042242,0.4888,2791.9,2791.1,0.0787]
[1763944042243,0.4917,2791.6,2790.3,8.81459669]
[1763944042445,0.4917,2791.6,2791.0,0.1]
[1763944042813,0.9805,2791.6,2791.0,0.1]
[1763944043039,0.4917,2791.6,2790.7,0.4508]
[1763944043244,0.4917,2791.6,2791.4,0.1]
[1763944043643,0.4888,2791.9,2791.4,0.1]
[1763944043844,0.4888,2791.9,2790.9,0.1]
[1763944043845,0.4917,2791.5,2790.9,0.1]
[1763944044049,0.4917,2791.5,2790.4,0.92201007]
[1763944044256,0.4888,2791.4,2790.8,0.1]
[1763944045328,0.4888,2791.4,2790.6,0.1]
[1763944048433,0.232,2791.3,2790.6,0.1]
[1763944048834,0.6786,2790.7,2790.3,0.1]
[1763944049069,0.1869,2790.9,2790.1,0.182]
[1763944049228,0.1869,2790.9,2790.5,0.1]
[1763944049431,0.1869,2790.9,2790.1,0.001]
[1763944049632,0.4888,2790.8,2790.3,0.1]
[1763944050957,0.4917,2790.4,2790.1,0.001]
[1763944051354,0.4888,2790.3,2790.1,0.001]
[1763944051656,0.1869,2790.9,2790.1,0.001]
[1763944051657,0.232,2790.8,2790.2,0.1]
[1763944051965,0.1869,2790.9,2790.5,0.1]
[1763944052466,0.6757,2790.9,2790.5,0.1]
[1763944053377,0.1869,2791.2,2790.5,0.1]
[1763944053548,0.1869,2792.0,2790.8,0.1]
[1763944053741,0.232,2791.5,2790.8,0.1]
[1763944053958,0.232,2791.5,2790.9,0.1]
[1763944054154,0.4888,2791.4,2790.9,0.1]
[1763944054354,0.4917,2791.0,2790.5,0.1]
[1763944054775,0.6757,2790.9,2790.5,0.1]
[1763944055338,0.232,2791.5,2790.8,0.1]
[1763944055675,0.4888,2791.4,2790.1,0.6328]
[1763944055873,0.4888,2791.4,2790.6,0.1]
[1763944056052,0.4888,2791.4,2790.9,0.1]
[1763944056444,0.4888,2791.4,2790.4,0.4508]
[1763944056642,0.405504,2791.3,2790.3,0.1]
[1763944057172,0.4888,2791.4,2790.3,0.1]
[1763944057173,0.4889,2791.2,2790.3,0.1]
[1763944057963,0.405504,2791.1,2790.1,0.2809]
[1763944058164,0.405504,2791.1,2790.1,0.1809]
[1763944058463,0.4889,2791.0,2790.2,0.1]
[1763944058850,0.1832,2790.9,2790.2,0.1]
[1763944059262,0.1832,2790.9,2790.1,0.1809]
[1763944059464,0.1832,2790.9,2790.5,0.1]
[1763944059844,0.6721,2790.9,2790.5,0.1]
[1763944060078,0.1832,2790.9,2790.7,0.1]
[1763944060748,0.4889,2791.3,2790.7,0.1]
[1763944061480,0.4889,2791.3,2790.5,0.456]
[1763944061775,0.4889,2791.3,2790.8,0.1]
[1763944062076,0.4889,2791.3,2790.9,0.1]
[1763944065156,0.48065923,2791.3,2790.9,0.1]
[1763944066089,0.48065923,2791.3,2790.3,0.90699264]
[1763944066090,0.232,2791.5,2791.2,0.5578]
[1763944066391,0.232,2791.5,2791.2,0.6578]
[1763944066591,0.232,2791.5,2791.4,0.5547]
[1763944068592,0.232,2791.5,2791.4,0.1]
[1763944069688,0.002,2791.6,2791.4,0.934]
[1763944069887,0.002,2791.6,2791.2,0.2031]
[1763944070365,0.4536,2791.3,2791.2,0.1]
[1763944070567,0.4967,2791.5,2790.9,0.1]
[1763944070865,0.04478039,2791.4,2790.4,0.4793]
[1763944071066,0.04478039,2791.4,2790.8,0.1]
[1763944071266,0.04478039,2791.4,2790.4,0.4793]
[1763944071267,0.4967,2791.3,2790.4,0.1]
[1763944071463,0.4967,2791.3,2790.1,1.08054967]
[1763944071464,0.652,2790.5,2790.1,0.101]
[1763944071668,0.652,2790.5,2790.1,0.001]
[1763944071921,0.0049,2790.2,2790.1,0.001]
[1763944072286,0.5016,2790.2,2790.1,0.001]
[1763944072482,0.1984,2790.5,2790.1,0.001]
[1763944072682,0.4511,2790.2,2790.1,0.001]
[1763944073112,0.9474,2790.2,2790.1,0.001]
[1763944076210,0.1984,2790.5,2790.1,0.001]
[1763944076408,0.002,2791.6,2790.1,0.001]
[1763944076409,0.4967,2790.8,2790.1,0.001]
[1763944076611,0.24318681,2791.0,2790.1,0.001]
[1763944076813,0.4967,2790.9,2790.1,0.001]
[1763944077012,0.4967,2790.9,2790.2,0.1]
[1763944077418,0.4967,2790.9,2790.1,0.001]
[1763944077620,0.4967,2790.9,2790.3,0.1]
[1763944077820,0.232,2790.9,2790.5,0.1]
[1763944078118,0.4536,2790.6,2790.3,0.1]
[1763944078620,0.0102,2790.4,2790.1,0.101]
[1763944078997,0.4967,2790.6,2790.1,0.101]
[1763944079199,0.232,2790.9,2790.1,0.101]
[1763944079200,0.7287,2790.9,2790.1,0.101]
[1763944079513,0.7287,2790.9,2790.2,0.1]
[1763944080397,0.232,2790.9,2790.2,0.1]
[1763944080598,0.4967,2790.8,2790.2,0.1]
[1763944082120,0.51059314,2790.0,2789.9,0.101]
[1763944082323,0.51059314,2790.0,2789.9,0.5803]
[1763944082624,0.51059314,2790.0,2789.9,1.035]
[1763944082826,0.51059314,2790.0,2789.9,2.87261432]
[1763944083327,0.51059314,2790.0,2789.9,5.5263505]
[1763944083728,0.51059314,2790.0,2789.9,1.94199264]
[1763944083926,0.51059314,2790.0,2789.9,0.5557]
[1763944084330,0.51059314,2790.0,2789.9,0.001]
[1763944084840,0.96419314,2790.0,2789.9,0.001]
[1763944085010,1.46089314,2790.0,2789.9,0.001]
[1763944087136,0.96419314,2790.0,2789.9,0.001]
[1763944087343,0.96419314,2790.0,2789.6,0.001]
[1763944087344,14.235972,2789.9,2789.6,0.001]
[1763944087529,0.625104,2789.7,2789.6,0.001]
[1763944087728,0.405504,2789.6,2788.4,0.1]
[1763944087933,8.81481009,2789.2,2787.7,0.001]
[1763944088117,0.0018,2788.1,2787.7,0.001]
[1763944088644,0.4838,2788.1,2787.7,0.001]
[1763944089508,0.232,2788.2,2788.0,0.4533]
[1763944090746,0.232,2788.2,2788.0,0.001]
[1763944092256,0.232,2788.2,2787.5,0.1]
[1763944092624,0.232,2788.2,2787.6,0.1]
[1763944093364,0.232,2788.2,2787.9,0.1]
[1763944094273,0.6779,2788.8,2788.1,0.4093]
[1763944094431,0.232,2788.7,2788.2,0.1]
[1763944094930,0.232,2788.7,2788.5,0.1]
[1763944096576,0.482,2789.5,2788.6,0.8186]
[1763944096779,0.1959,2789.7,2789.0,0.1]
[1763944097075,0.714,2789.6,2787.9,0.4093]
[1763944097280,0.405504,2789.5,2788.4,0.1]
[1763944097567,0.405504,2789.5,2787.9,0.4093]
[1763944097568,0.887504,2789.5,2788.7,0.1]
[1763944097787,0.887504,2789.5,2787.9,0.4093]
[1763944097788,0.887504,2789.5,2788.5,0.1]
[1763944097928,0.887504,2789.5,2787.9,0.4093]
[1763944097929,0.405504,2789.3,2787.9,0.4093]
[1763944098132,0.45031811,2789.3,2788.2,0.1]
[1763944098368,0.405504,2789.1,2788.2,0.1]
[1763944098547,0.04481893,2789.0,2788.2,0.1]
[1763944099067,0.405504,2788.8,2788.0,0.1]
[1763944099273,0.474,2788.3,2787.7,0.1]
[1763944099780,0.232,2788.5,2787.9,0.1]
[1763944100132,0.482,2788.7,2787.9,0.1]
[1763944100337,0.482,2789.2,2788.2,0.1]
[1763944100642,0.482,2789.2,2788.0,0.4093]
[1763944100643,0.232,2789.1,2788.5,0.1]
[1763944100872,0.232,2789.1,2788.0,0.4093]
[1763944101188,0.232,2789.1,2789.0,0.1]
[1763944101533,0.482,2789.9,2789.0,0.5093]
[1763944101737,0.232,2789.8,2789.3,0.1]
[1763944101945,0.232,2789.8,2789.6,0.1]
[1763944102179,0.714,2789.8,2789.0,0.1]
[1763944102384,0.714,2789.8,2789.2,0.1]
[1763944104073,0.232,2789.8,2789.5,0.1]
[1763944104852,0.714,2789.8,2789.3,0.1]
[1763944106052,0.482,2789.7,2789.0,0.1]
[1763944108279,0.482,2789.7,2789.3,0.1]
[1763944108490,0.482,2789.7,2788.4,0.482]
[1763944108793,0.04480929,2789.6,2788.4,0.1]
[1763944108952,0.04480929,2789.6,2788.0,0.482]
[1763944108953,0.405504,2789.5,2788.0,0.482]
[1763944109290,0.405504,2789.3,2788.4,0.1]
[1763944109492,0.405504,2789.1,2788.0,0.1]
[1763944109800,0.405504,2789.1,2787.9,0.001]
[1763944110100,0.482,2789.0,2787.9,0.101]
[1763944110460,0.1959,2788.9,2787.9,0.101]
[1763944110661,0.232,2788.8,2787.9,0.101]
[1763944110862,0.714,2788.8,2787.9,0.101]
[1763944111096,0.714,2788.8,2787.9,0.001]
[1763944111264,0.887504,2788.7,2787.9,0.001]
[1763944111783,0.887504,2788.7,2788.0,0.1]
[1763944111968,0.482,2788.6,2788.0,0.1]
[1763944114920,0.482,2788.6,2787.9,0.001]
[1763944114921,0.474,2788.1,2787.9,0.001]
[1763944115070,0.3921,2788.0,2787.9,0.001]
[1763944115495,0.8741,2788.0,2787.9,0.001]
[1763944121478,1.1061,2788.0,2787.9,0.001]
[1763944122886,0.002,2788.6,2787.9,0.4103]
[1763944123230,0.232,2788.5,2787.9,0.4103]
[1763944124232,0.4871,2788.4,2787.9,0.001]
[1763944124525,0.232,2788.5,2787.9,0.001]
[1763944125895,0.232,2788.5,2787.9,0.101]
[1763944126100,0.232,2788.5,2788.4,0.5163]
[1763944126618,1.2089,2788.5,2787.9,0.101]
[1763944126801,0.232,2788.5,2788.0,0.1]
[1763944127116,0.232,2788.5,2788.2,0.1]
[1763944127329,0.232,2788.5,2787.9,0.001]
[1763944127330,0.7191,2788.5,2787.9,0.001]
[1763944127824,0.4871,2788.4,2787.9,0.001]
[1763944128028,0.4898,2788.0,2787.9,0.001]
[1763944128829,0.4871,2788.4,2787.9,0.001]
[1763944129205,0.53192857,2788.4,2787.9,0.001]
[1763944130530,0.4871,2788.4,2787.9,0.001]
[1763944131840,0.4898,2788.0,2787.9,0.001]
[1763944133906,0.9769,2788.0,2787.9,0.001]
[1763944134103,0.4898,2788.0,2787.9,0.001]
[1763944134343,0.4871,2788.3,2787.9,0.001]
[1763944134540,0.232,2788.2,2787.9,0.001]
[1763944134940,0.4891,2788.6,2788.1,0.5163]
[1763944135140,0.232,2788.2,2788.1,0.5163]
[1763944135344,0.002,2788.6,2788.2,0.4093]
[1763944135550,0.002,2788.6,2788.5,0.5093]
[1763944137244,0.002,2788.6,2788.5,0.9186]
[1763944137450,0.002,2788.6,2788.5,0.5093]
[1763944138946,0.002,2788.6,2788.5,0.4093]
[1763944139150,0.002,2788.6,2788.5,0.9186]
[1763944139537,0.002,2788.6,2788.5,1.36909201]
[1763944140546,0.002,2788.6,2788.5,0.4093]
[1763944140953,0.002,2788.6,2788.5,0.5093]
[1763944141158,0.002,2788.6,2788.5,0.9186]
[1763944141359,0.002,2788.6,2788.1,0.107]
[1763944141523,0.002,2788.6,2788.3,0.1]
[1763944141857,0.002,2788.6,2788.5,0.4093]
[1763944142055,0.002,2788.6,2788.5,0.5093]
[1763944142864,0.002,2788.6,2788.5,0.9186]
[1763944144760,0.002,2788.6,2788.5,10.66423585]
[1763944144947,0.002,2788.9,2788.6,5.31162147]
[1763944145153,0.002,2788.9,2788.8,0.5093]
[1763944145540,0.002,2788.9,2788.8,0.9186]
[1763944147660,0.002,2788.9,2788.8,1.82559264]
[1763944147863,0.002,2788.9,2788.8,0.9186]
[1763944148067,0.002,2788.9,2788.8,1.45975691]
[1763944148653,0.002,2788.9,2788.8,2.36674955]
[1763944148839,0.002,2788.9,2788.8,1.45975691]
[1763944149849,0.002,2788.9,2788.8,5.41136429]
[1763944150473,0.002,2788.9,2788.8,1.82559264]
[1763944151273,0.4622,2790.6,2788.9,0.90699264]
[1763944151485,0.4622,2790.6,2789.9,0.6163]
[1763944151840,0.4622,2790.6,2789.9,0.5163]
[1763944152173,0.4622,2790.6,2789.9,0.6163]
[1763944152340,0.002,2790.6,2789.9,1.0256]
[1763944152541,0.002,2790.6,2789.9,2.1258519]
[1763944153474,0.002,2790.6,2789.9,5.71020976]
[1763944153665,0.002,2790.6,2789.9,0.80955926]
[1763944153974,0.002,2790.6,2789.9,0.6163]
[1763944154572,0.4956,2790.0,2789.4,0.4622]
[1763944154780,0.4301,2789.5,2788.9,0.107]
[1763944154954,0.4301,2789.5,2789.2,0.1]
[1763944155470,0.493,2789.3,2789.2,0.1]
[1763944155669,0.493,2789.3,2788.9,0.1]
[1763944155873,0.9532,2789.3,2788.9,0.1]
[1763944156283,0.1849,2789.9,2789.2,0.1]
[1763944156444,0.4602,2789.8,2789.2,0.1]
[1763944156645,0.4602,2789.8,2788.5,1.37019264]
[1763944156646,0.4936,2789.3,2788.5,0.4632]
[1763944156887,0.4936,2789.3,2788.9,0.1]
[1763944157176,0.9538,2789.3,2788.9,0.1]
[1763944157474,0.4301,2789.0,2788.5,0.001]
[1763944157676,0.4301,2789.0,2788.6,0.1]
[1763944157846,0.8903,2789.0,2788.6,0.1]
[1763944158040,0.4602,2789.3,2788.6,0.1]
[1763944158283,0.4602,2789.3,2788.9,0.1]
[1763944159144,0.4602,2789.3,2789.1,0.1]
[1763944159883,0.4936,2789.2,2788.5,0.001]
[1763944160048,0.4936,2789.2,2788.6,0.1]
[1763944160383,0.4602,2789.1,2788.6,0.1]
[1763944160680,0.4301,2788.7,2788.5,0.001]
[1763944161360,0.493,2788.6,2788.5,0.001]
[1763944161760,0.9532,2788.6,2788.5,0.001]
[1763944164251,1.1852,2788.6,2788.5,0.001]
[1763944165596,0.725,2788.6,2788.5,0.001]
[1763944165957,1.1852,2788.6,2788.5,0.001]
[1763944166969,0.232,2788.6,2788.5,0.001]
[1763944167158,0.232,2788.6,2788.5,0.101]
[1763944167498,0.232,2788.6,2788.5,0.001]
[1763944167499,1.1858,2788.6,2788.5,0.001]
[1763944171612,0.4602,2789.2,2788.5,0.001]
[1763944171812,0.7256,2788.6,2788.5,0.001]
[1763944172274,1.1858,2788.6,2788.5,0.001]
[1763944173206,0.4602,2788.9,2788.5,0.001]
[1763944173385,0.4602,2789.4,2788.5,0.001]
[1763944173710,0.6922,2789.3,2788.5,0.101]
[1763944174118,0.002,2789.2,2788.5,0.101]
[1763944174319,0.4622,2789.2,2788.5,0.101]
[1763944174514,0.002,2789.2,2788.5,0.001]
[1763944174881,0.002,2789.2,2788.8,0.1]
[1763944175083,0.002,2789.2,2788.5,0.001]
[1763944175084,0.50701571,2789.2,2788.5,0.101]
[1763944175283,0.4936,2788.6,2788.5,0.001]
[1763944175725,0.9538,2788.6,2788.5,0.001]
[1763944176997,1.1858,2788.6,2788.5,0.001]
[1763944177798,0.002,2789.2,2788.5,0.001]
[1763944177799,0.002,2789.2,2788.6,0.1]
[1763944178005,0.002,2789.2,2788.5,0.8196]
[1763944178222,0.002,2789.2,2789.1,0.1]
[1763944178518,0.002,2789.2,2788.9,0.1]
[1763944179514,0.4637,2789.0,2788.5,0.001]
[1763944179757,0.4637,2789.0,2788.5,0.101]
[1763944179915,0.9615,2789.0,2788.5,0.001]
[1763944180113,0.9615,2789.0,2788.5,0.101]
[1763944181353,0.002,2789.2,2788.5,0.5103]
[1763944181569,0.002,2789.2,2788.8,0.1]
[1763944181747,0.002,2789.2,2788.5,0.001]
[1763944181916,0.4998,2789.2,2788.7,0.1]
[1763944182112,0.4998,2789.2,2788.5,0.001]
[1763944183228,0.4998,2789.2,2788.5,0.101]
[1763944183433,0.4998,2789.2,2788.6,0.1]
[1763944184534,0.04481732,2789.1,2788.5,0.001]
[1763944184733,0.4659,2788.7,2788.5,0.001]
[1763944185244,0.9358,2788.6,2788.5,0.001]
[1763944186123,0.4699,2789.0,2788.5,0.001]
[1763944187044,0.002,2789.2,2788.5,0.4103]
[1763944187246,0.232,2789.1,2788.7,0.1]
[1763944187821,0.4699,2789.0,2788.6,0.1]
[1763944188021,0.4699,2789.0,2788.5,0.101]
[1763944188463,0.232,2789.1,2788.5,0.101]
[1763944189067,0.002,2789.2,2788.6,0.1]
[1763944189232,0.002,2789.2,2789.1,0.5163]
[1763944189945,0.002,2789.2,2789.1,0.107]
[1763944190145,0.002,2789.2,2789.1,0.6163]
[1763944190547,0.002,2789.2,2789.0,0.1]
[1763944190737,0.002,2789.2,2789.1,0.5163]
[1763944190937,0.002,2789.2,2789.1,0.6163]
[1763944191424,0.002,2789.2,2788.9,0.107]
[1763944191629,0.002,2789.2,2789.1,0.5093]
[1763944192063,0.002,2789.2,2789.1,0.1]
[1763944192943,0.002,2789.2,2789.0,0.1]
[1763944193264,0.002,2789.2,2789.1,0.4093]
[1763944193650,0.002,2789.2,2789.1,0.9186]
[1763944194279,0.002,2789.2,2789.1,4.69724522]
[1763944194436,0.002,2789.2,2789.1,2.0188519]
[1763944194642,0.002,2789.2,2789.1,1.9188519]
[1763944194840,0.002,2789.2,2789.1,2.0188519]
[1763944195079,0.002,2789.2,2789.1,1.6095519]
[1763944195275,0.002,2789.2,2789.1,2.0188519]
[1763944195781,0.002,2789.2,2789.1,1.6095519]
[1763944196144,0.002,2789.2,2789.1,2.0188519]
[1763944196770,0.002,2789.2,2789.1,1.6095519]
[1763944197150,0.002,2789.2,2789.1,2.0188519]
[1763944197580,0.002,2789.2,2789.1,5.60423786]
[1763944197771,0.002,2789.2,2789.1,2.16255199]
[1763944198676,0.002,2789.2,2789.1,5.74793795]
[1763944198980,0.002,2789.2,2789.1,2.16255199]
[1763944200283,0.002,2789.2,2789.1,1.5095519]
[1763944200582,0.002,2789.2,2789.1,0.4093]
[1763944200877,0.002,2789.2,2789.1,0.9186]
[1763944201053,0.002,2789.2,2789.1,0.4093]
[1763944201254,0.002,2789.2,2789.1,0.5093]
[1763944201747,0.002,2789.2,2789.1,0.1]
[1763944203159,0.002,2789.2,2789.1,0.5093]
[1763944203547,0.002,2789.2,2789.1,0.1]
[1763944203748,0.002,2789.2,2789.1,0.5093]
[1763944204449,0.002,2789.2,2789.1,0.9186]
[1763944204900,0.002,2789.2,2789.1,2.37741597]
[1763944205111,0.002,2789.2,2789.1,1.47042333]
[1763944205273,0.002,2789.2,2789.1,1.06230835]
[1763944205604,0.002,2789.2,2789.1,0.65300835]
[1763944205803,0.002,2789.2,2789.1,0.24370835]
[1763944206007,0.002,2789.2,2789.1,0.1]
[1763944206159,0.9378,2789.2,2788.9,0.1]
[1763944206358,0.002,2789.2,2788.8,0.001]
[1763944206767,0.469,2788.9,2788.8,0.001]
[1763944207380,0.495,2789.1,2788.8,0.001]
[1763944207865,0.469,2788.9,2788.8,0.001]
[1763944208660,0.964,2788.9,2788.8,0.001]
[1763944209212,0.002,2789.2,2788.8,0.001]
[1763944209422,0.497,2789.2,2788.8,0.001]
[1763944209772,0.469,2788.9,2788.8,0.001]
[1763944210177,0.964,2788.9,2788.8,0.001]
[1763944217347,0.964,2788.9,2788.5,0.001]
[1763944217556,0.4131,2788.3,2787.9,0.001]
[1763944217846,0.4131,2788.3,2787.4,0.001]
[1763944217847,0.4127,2788.0,2787.4,0.001]
[1763944218048,0.6615,2787.7,2787.4,0.001]
[1763944218642,0.8935,2787.7,2787.4,0.001]
[1763944219443,1.3885,2787.7,2787.4,0.001]
[1763944219666,0.8935,2787.7,2787.4,0.001]
[1763944219959,1.3885,2787.7,2787.4,0.001]
[1763944220956,0.469,2787.2,2785.3,0.11]
[1763944221156,3.918192,2787.5,2785.4,0.1]